{"text_format":"1","workbook":"xlsx","n_sheets":1,"sheets":["Hoja1"],"not_rendered":{"charts":0,"images":3,"macros":1,"external_links":0,"defined_names":0,"comments":0,"pivot_tables":0},"unopened":[],"bounds":{"document_bytes":16777216,"sheet_cells":100000,"rows_first":2000,"rows_last":500,"rows_between":2000,"halvings":0,"cell_chars":16384,"cell_head_chars":4096},"cells_cut":0,"cells_raw":0,"read":"whole","date_system":"1900"}

{"sheet":"Hoja1","index":0,"n_rows":160,"n_cols":7,"rows_kept":160,"cut":false,"hidden":false,"merged":[[20,2,20,3],[21,2,21,3],[22,2,22,3],[23,2,23,3],[24,2,24,3],[25,2,25,3],[9,2,9,3],[18,2,18,3],[19,2,19,3],[33,2,33,3],[34,2,34,3],[35,2,35,3],[36,2,36,3],[38,2,38,3],[39,2,39,3],[26,2,26,3],[28,2,28,3],[29,2,29,3],[30,2,30,3],[31,2,31,3],[32,2,32,3],[46,2,46,3],[48,2,48,3],[49,2,49,3],[50,2,50,3],[51,2,51,3],[52,2,52,3],[40,2,40,3],[41,2,41,3],[42,2,42,3],[43,2,43,3],[44,2,44,3],[45,2,45,3],[60,2,60,3],[61,2,61,3],[62,2,62,3],[63,2,63,3],[64,2,64,3],[65,2,65,3],[53,2,53,3],[54,2,54,3],[55,2,55,3],[56,2,56,3],[58,2,58,3],[59,2,59,3],[57,1,57,2],[73,2,73,3],[74,2,74,3],[75,2,75,3],[76,2,76,3],[78,2,78,3],[79,2,79,3],[77,1,77,2],[66,2,66,3],[68,2,68,3],[69,2,69,3],[70,2,70,3],[71,2,71,3],[72,2,72,3],[67,1,67,2],[86,2,86,3],[88,2,88,3],[89,2,89,3],[90,2,90,3],[91,2,91,3],[92,2,92,3],[87,1,87,2],[80,2,80,3],[81,2,81,3],[82,2,82,3],[83,2,83,3],[84,2,84,3],[85,2,85,3],[100,2,100,3],[101,2,101,3],[102,2,102,3],[103,2,103,3],[104,2,104,3],[105,2,105,3],[93,2,93,3],[94,2,94,3],[95,2,95,3],[96,2,96,3],[98,2,98,3],[99,2,99,3],[97,1,97,2],[113,2,113,3],[114,2,114,3],[115,2,115,3],[116,2,116,3],[118,2,118,3],[106,2,106,3],[108,2,108,3],[109,2,109,3],[110,2,110,3],[111,2,111,3],[112,2,112,3],[107,1,107,2],[126,2,126,3],[127,2,127,3],[128,2,128,3],[129,2,129,3],[130,2,130,3],[131,2,131,3],[119,2,119,3],[120,2,120,3],[123,2,123,3],[141,2,141,3],[142,2,142,3],[143,2,143,3],[144,2,144,3],[145,2,145,3],[133,2,133,3],[134,2,134,3],[135,2,135,3],[136,2,136,3],[137,2,137,3],[138,2,138,3],[154,2,154,3],[155,2,155,3],[156,2,156,3],[157,2,157,3],[158,2,158,3],[159,2,159,3],[147,2,147,3],[148,2,148,3],[149,2,149,3],[150,2,150,3],[151,2,151,3],[152,2,152,3],[7,1,7,3],[5,1,5,5],[10,1,10,3],[16,1,16,3],[121,1,121,3],[153,1,153,2],[8,1,8,3],[117,1,117,3],[122,1,122,3],[124,1,124,3],[125,1,125,2],[132,1,132,2],[139,1,139,2],[146,1,146,2],[11,1,11,2],[12,1,12,2],[13,1,13,2],[14,1,14,2],[15,1,15,2],[17,1,17,2],[27,1,27,2],[37,1,37,2],[47,1,47,2],[140,2,140,3]]}
[]
[]
[]
[]
[null,null,null,"(Nota. Rellenar celdas en blanco)"]
["C","PRESUPUESTO / CÁLCULO DE LA AYUDA"]
[]
["COD","CONCEPTO",null,null,"COSTE ELEGIBLE MAXIMO","COSTE SOLICITADO EMPRESA"]
["3.1","Gastos de Consultoría Externa",null,null,2000,{"$f":"SUM(F10)","v":0}]
[null,null,"Diagnóstico Posición Competitiva/Potencial Internacional/Elaboración Planes de Marketing"]
["3.2","Viajes Prospección Internacional",null,null,4000,{"$f":"SUM(F12:F16)","v":0}]
[null,"País 1"]
[null,"País 2"]
[null,"País 3"]
[null,"País 4"]
[null,"País 5"]
["3.3","Participación en Ferias y Exposiciones Internacionales",null,null,40000,{"$f":"SUM(F18,F28,F38,F48,F58,F68,F78,F88,F98,F108)","v":0},"* Para cumplimentar información de otras ferias, despliegue los apartados pulsando sobre el símbolo + que aparece a la izquierda del número de celda."]
[null,"Feria 1",null,null,null,{"$f":"SUM(F19:F27)","v":0}]
[null,null,"Viaje de un representante de la empresa, hotel, seguro y visado"]
[null,null,"Alquiler de espacio"]
[null,null,"Gastos de inscripción en la Feria o evento expositivo"]
[null,null,"Diseño y decoración stand, espacio expositivo o promocional"]
[null,null,"Envío y recepción de muestras (salvo perecederos)"]
[null,null,"Participación Seminarios, Jornadas técnicas Feria, etc"]
[null,null,"Honorarios de intérprete con titulación oficial"]
[null,null,"Material promocional específico para la feria o evento"]
[null,null,"Inserción en prensa especializada en el país para publicidad de la feria"]
[null,"Feria 2",null,null,null,{"$f":"SUM(F29:F37)","v":0}]
[null,null,"Viaje de un representante de la empresa, hotel, seguro y visado"]
[null,null,"Alquiler de espacio"]
[null,null,"Gastos de inscripción en la Feria o evento expositivo"]
[null,null,"Diseño y decoración stand, espacio expositivo o promocional"]
[null,null,"Envío y recepción de muestras (salvo perecederos)"]
[null,null,"Participación Seminarios, Jornadas técnicas Feria, etc"]
[null,null,"Honorarios de intérprete con titulación oficial"]
[null,null,"Material promocional específico para la feria o evento"]
[null,null,"Inserción en prensa especializada en el país para publicidad de la feria"]
[null,"Feria 3",null,null,null,{"$f":"SUM(F39:F47)","v":0}]
[null,null,"Viaje de un representante de la empresa, hotel, seguro y visado"]
[null,null,"Alquiler de espacio"]
[null,null,"Gastos de inscripción en la Feria o evento expositivo"]
[null,null,"Diseño y decoración stand, espacio expositivo o promocional"]
[null,null,"Envío y recepción de muestras (salvo perecederos)"]
[null,null,"Participación Seminarios, Jornadas técnicas Feria, etc"]
[null,null,"Honorarios de intérprete con titulación oficial"]
[null,null,"Material promocional específico para la feria o evento"]
[null,null,"Inserción en prensa especializada en el país para publicidad de la feria"]
[null,"Feria 4",null,null,null,{"$f":"SUM(F49:F57)","v":0}]
[null,null,"Viaje de un representante de la empresa, hotel, seguro y visado"]
[null,null,"Alquiler de espacio"]
[null,null,"Gastos de inscripción en la Feria o evento expositivo"]
[null,null,"Diseño y decoración stand, espacio expositivo o promocional"]
[null,null,"Envío y recepción de muestras (salvo perecederos)"]
[null,null,"Participación Seminarios, Jornadas técnicas Feria, etc"]
[null,null,"Honorarios de intérprete con titulación oficial"]
[null,null,"Material promocional específico para la feria o evento"]
[null,null,"Inserción en prensa especializada en el país para publicidad de la feria"]
[null,"Feria 5",null,null,null,{"$f":"SUM(F59:F67)","v":0}]
[null,null,"Viaje de un representante de la empresa, hotel, seguro y visado"]
[null,null,"Alquiler de espacio"]
[null,null,"Gastos de inscripción en la Feria o evento expositivo"]
[null,null,"Diseño y decoración stand, espacio expositivo o promocional"]
[null,null,"Envío y recepción de muestras (salvo perecederos)"]
[null,null,"Participación Seminarios, Jornadas técnicas Feria, etc"]
[null,null,"Honorarios de intérprete con titulación oficial"]
[null,null,"Material promocional específico para la feria o evento"]
[null,null,"Inserción en prensa especializada en el país para publicidad de la feria"]
[null,"Feria 6",null,null,null,{"$f":"SUM(F69:F77)","v":0}]
[null,null,"Viaje de un representante de la empresa, hotel, seguro y visado"]
[null,null,"Alquiler de espacio"]
[null,null,"Gastos de inscripción en la Feria o evento expositivo"]
[null,null,"Diseño y decoración stand, espacio expositivo o promocional"]
[null,null,"Envío y recepción de muestras (salvo perecederos)"]
[null,null,"Participación Seminarios, Jornadas técnicas Feria, etc"]
[null,null,"Honorarios de intérprete con titulación oficial"]
[null,null,"Material promocional específico para la feria o evento"]
[null,null,"Inserción en prensa especializada en el país para publicidad de la feria"]
[null,"Feria 7",null,null,null,{"$f":"SUM(F79:F87)","v":0}]
[null,null,"Viaje de un representante de la empresa, hotel, seguro y visado"]
[null,null,"Alquiler de espacio"]
[null,null,"Gastos de inscripción en la Feria o evento expositivo"]
[null,null,"Diseño y decoración stand, espacio expositivo o promocional"]
[null,null,"Envío y recepción de muestras (salvo perecederos)"]
[null,null,"Participación Seminarios, Jornadas técnicas Feria, etc"]
[null,null,"Honorarios de intérprete con titulación oficial"]
[null,null,"Material promocional específico para la feria o evento"]
[null,null,"Inserción en prensa especializada en el país para publicidad de la feria"]
[null,"Feria 8",null,null,null,{"$f":"SUM(F89:F97)","v":0}]
[null,null,"Viaje de un representante de la empresa, hotel, seguro y visado"]
[null,null,"Alquiler de espacio"]
[null,null,"Gastos de inscripción en la Feria o evento expositivo"]
[null,null,"Diseño y decoración stand, espacio expositivo o promocional"]
[null,null,"Envío y recepción de muestras (salvo perecederos)"]
[null,null,"Participación Seminarios, Jornadas técnicas Feria, etc"]
[null,null,"Honorarios de intérprete con titulación oficial"]
[null,null,"Material promocional específico para la feria o evento"]
[null,null,"Inserción en prensa especializada en el país para publicidad de la feria"]
[null,"Feria 9",null,null,null,{"$f":"SUM(F99:F107)","v":0}]
[null,null,"Viaje de un representante de la empresa, hotel, seguro y visado"]
[null,null,"Alquiler de espacio"]
[null,null,"Gastos de inscripción en la Feria o evento expositivo"]
[null,null,"Diseño y decoración stand, espacio expositivo o promocional"]
[null,null,"Envío y recepción de muestras (salvo perecederos)"]
[null,null,"Participación Seminarios, Jornadas técnicas Feria, etc"]
[null,null,"Honorarios de intérprete con titulación oficial"]
[null,null,"Material promocional específico para la feria o evento"]
[null,null,"Inserción en prensa especializada en el país para publicidad de la feria"]
[null,"Feria 10",null,null,null,{"$f":"SUM(F109:F117)","v":0}]
[null,null,"Viaje de un representante de la empresa, hotel, seguro y visado"]
[null,null,"Alquiler de espacio"]
[null,null,"Gastos de inscripción en la Feria o evento expositivo"]
[null,null,"Diseño y decoración stand, espacio expositivo o promocional"]
[null,null,"Envío y recepción de muestras (salvo perecederos)"]
[null,null,"Participación Seminarios, Jornadas técnicas Feria, etc"]
[null,null,"Honorarios de intérprete con titulación oficial"]
[null,null,"Material promocional específico para la feria o evento"]
[null,null,"Inserción en prensa especializada en el país para publicidad de la feria"]
["3.4","Acciones de Marketing Internacional",null,null,30000,{"$f":"SUM(F119:F121)","v":0}]
[null,null,"Diseño y traducción mat. Promoc. (folletos, cd's, cat…)"]
[null,null,"Desarrollo de nuevas herramientas telemáticas"]
[null,null,"Gastos de publicidad en medios extranjeros"]
["3.5","Gastos de registro de marcas y patentes en mercados de destino",null,null,6000]
["3.6","Organización de misiones inversas (mínimo 3 empresas participantes), familiarización y formación",null,null,5000,{"$f":"SUM(F124)","v":0}]
[null,null,"Viaje de un representante de la empresa, hotel, seguro y visado"]
["3.7","Implantaciones en el exterior; comercial o productiva",null,null,50000,{"$f":"SUM(F126,F133,F140,F147,F154)","v":0}]
[null,"País 1",null,null,null,{"$f":"SUM(F127:F132)","v":0},"* Para cumplimentar información de otros países, despliegue los apartados pulsando sobre el símbolo + que aparece a la izquierda del número de celda."]
[null,null,"Estudios de viabilidad de implantación"]
[null,null,"Gastos asesoramiento jurídico y fiscal"]
[null,null,"Registro de propiedad industrial y patentes en el país"]
[null,null,"Gastos notariales"]
[null,null,"Contratación de servicios para selección de RRHH"]
[null,null,"Alquiler de oficina temporal"]
[null,"País 2",null,null,null,{"$f":"SUM(F134:F139)","v":0}]
[null,null,"Estudios de viabilidad de implantación"]
[null,null,"Gastos asesoramiento jurídico y fiscal"]
[null,null,"Registro de propiedad industrial y patentes en el país"]
[null,null,"Gastos notariales"]
[null,null,"Contratación de servicios para selección de RRHH"]
[null,null,"Alquiler de oficina temporal"]
[null,"País 3",null,null,null,{"$f":"SUM(F141:F146)","v":0}]
[null,null,"Estudios de viabilidad de implantación"]
[null,null,"Gastos asesoramiento jurídico y fiscal"]
[null,null,"Registro de propiedad industrial y patentes en el país"]
[null,null,"Gastos notariales"]
[null,null,"Contratación de servicios para selección de RRHH"]
[null,null,"Alquiler de oficina temporal"]
[null,"País 4",null,null,null,{"$f":"SUM(F148:F153)","v":0}]
[null,null,"Estudios de viabilidad de implantación"]
[null,null,"Gastos asesoramiento jurídico y fiscal"]
[null,null,"Registro de propiedad industrial y patentes en el país"]
[null,null,"Gastos notariales"]
[null,null,"Contratación de servicios para selección de RRHH"]
[null,null,"Alquiler de oficina temporal"]
[null,"País 5",null,null,null,{"$f":"SUM(F155:F160)","v":0}]
[null,null,"Estudios de viabilidad de implantación"]
[null,null,"Gastos asesoramiento jurídico y fiscal"]
[null,null,"Registro de propiedad industrial y patentes en el país"]
[null,null,"Gastos notariales"]
[null,null,"Contratación de servicios para selección de RRHH"]
[null,null,"Alquiler de oficina temporal"]